bitfinex-derivatives/quotes_ETHF0:USTF0_20241231
["timestamp","ask_amount","ask_price","bid_price","bid_amount"]
[1735660083922,0.4497,3418.9,3418.2,3.2078]
[1735660084121,0.29292,3418.8,3418.2,3.94022]
[1735660084324,0.74261,3418.9,3418.7,0.29292]
[1735660084624,0.4497,3418.9,3418.3,0.73241]
[1735660084825,0.29292,3418.8,3418.6,3.50073]
[1735660085017,0.29293,3418.8,3418.2,3.2078]
[1735660085218,0.74262,3418.9,3418.3,0.29296]
[1735660085419,0.29292,3418.8,3418.6,0.29293]
[1735660085926,0.74262,3418.9,3418.6,0.29293]
[1735660086325,0.4497,3418.9,3418.5,0.29294]
[1735660086626,0.29296,3418.3,3418.1,0.29297]
[1735660086824,3.6575,3418.9,3417.9,0.29299]
[1735660087016,0.29298,3418.1,3417.9,0.293]
[1735660087221,0.29298,3418.1,3417.8,3.5008]
[1735660087420,0.4488,3418.1,3417.8,3.2078]
[1735660087725,0.29299,3418.0,3417.8,3.5008]
[1735660090722,0.293,3417.9,3417.7,0.29301]
[1735660090919,0.29302,3417.7,3417.5,0.29303]
[1735660091119,0.4488,3418.1,3417.4,3.2078]
[1735660091329,0.293,3417.9,3417.7,0.29301]
[1735660091626,0.8679,3418.1,3417.4,3.2078]
[1735660092123,3.2078,3419.0,3417.8,3.2078]
[1735660092331,0.4367,3418.6,3418.5,0.29294]
[1735660092523,3.84750442,3418.6,3418.2,3.2078]
[1735660092728,0.29295,3418.5,3418.3,0.29296]
[1735660092921,3.41080442,3418.6,3418.5,0.29294]
[1735660093823,3.41080442,3418.6,3418.2,3.2078]
[1735660094532,0.29294,3418.6,3418.4,0.29295]
[1735660094719,0.29295,3418.4,3418.2,3.50076]
[1735660094924,0.29295,3418.5,3418.3,0.29296]
[1735660095431,0.29295,3418.5,3417.9,1.7091]
[1735660095432,0.4409,3418.8,3417.9,1.7091]
[1735660095630,0.4409,3418.8,3418.2,3.2078]
[1735660096034,0.29293,3418.7,3418.5,0.29294]
[1735660096631,0.4409,3418.8,3418.2,3.2078]
[1735660097131,0.4409,3418.8,3418.3,0.29296]
[1735660097333,0.29295,3418.5,3418.3,0.29296]
[1735660097825,0.29295,3418.5,3418.2,3.2078]
[1735660098031,0.29294,3418.6,3418.4,0.29295]
[1735660098328,0.29295,3418.5,3418.3,0.29296]
[1735660098524,0.4396,3418.4,3418.3,0.29296]
[1735660099135,0.29294,3418.6,3418.5,0.29294]
[1735660099335,0.73382,3418.8,3418.3,0.29296]
[1735660099533,0.73382,3418.8,3418.6,0.29293]
[1735660099728,0.4409,3418.8,3418.2,3.2078]
[1735660099934,0.29294,3418.6,3418.5,0.29294]
[1735660100128,0.29296,3418.4,3418.2,3.50077]
[1735660100328,0.4418,3418.7,3417.9,1.7091]
[1735660100936,3.85260442,3418.7,3417.9,1.7091]
[1735660101133,0.29297,3418.3,3418.1,0.29297]
[1735660101329,3.85260442,3418.7,3418.1,0.29297]
[1735660101636,0.29297,3418.2,3418.1,0.29297]
[1735660102338,4.58494442,3418.7,3418.4,0.29294]
[1735660102339,0.29295,3418.5,3418.4,0.29294]
[1735660102534,0.29296,3418.4,3418.3,0.29296]
[1735660103638,0.29295,3418.5,3418.4,0.29294]
[1735660103831,0.29294,3418.6,3418.5,0.29294]
[1735660104537,3.41080442,3418.7,3418.1,3.2078]
[1735660104833,0.29294,3418.6,3418.5,0.29294]
[1735660105225,0.4409,3418.8,3418.1,3.94024]
[1735660105226,0.4409,3418.8,3418.2,0.73242]
[1735660105428,3.85100442,3418.9,3418.8,0.29292]
[1735660105628,3.41080442,3418.9,3418.8,0.29292]
[1735660106028,3.41080442,3419.1,3418.7,3.2078]
[1735660106230,3.41080442,3419.1,3419.0,0.2929]
[1735660106636,2.01780442,3419.1,3419.0,5.2929]
[1735660106826,1.03130442,3419.1,3419.0,5.2929]
[1735660107540,1.03130442,3419.1,3419.0,0.2929]
[1735660107735,0.29285,3419.6,3419.5,0.29286]
[1735660108038,0.29285,3419.7,3419.6,0.29284]
[1735660108238,0.29285,3419.6,3419.5,1.54485]
[1735660108436,0.74265,3419.6,3419.5,1.252]
[1735660108641,0.74265,3419.6,3419.5,1.54486]
[1735660108938,0.74265,3419.6,3419.5,1.252]
[1735660109141,0.74265,3419.6,3419.5,1.54486]
[1735660109637,0.74265,3419.6,3419.5,1.252]
[1735660109839,0.4498,3419.6,3419.5,1.54486]
[1735660110038,0.71663,3419.9,3419.8,0.29283]
[1735660110336,4.54773923,3420.1,3419.8,3.2078]
[1735660110540,4.54773923,3420.1,3420.0,0.29282]
[1735660111739,0.29279,3420.4,3420.3,0.29279]
[1735660111944,0.2928,3420.3,3420.2,0.2928]
[1735660112340,0.8883,3420.6,3419.8,3.2078]
[1735660112534,0.29283,3419.9,3419.8,0.29282]
[1735660112940,0.29284,3419.8,3419.7,0.29284]
[1735660113244,0.4349,3419.8,3419.5,1.252]
[1735660113449,0.4349,3419.8,3419.4,3.2078]
[1735660113650,0.4441,3419.7,3419.2,1.252]
[1735660113945,0.29285,3419.6,3419.5,0.29285]
[1735660114349,0.73695,3419.7,3419.6,0.29285]
[1735660115846,0.4441,3419.7,3419.6,0.29285]
[1735660116445,0.4441,3419.7,3419.6,3.50065]
[1735660116646,0.4349,3419.8,3419.7,0.29284]
[1735660118551,0.72773,3419.8,3419.7,0.29284]
[1735660118753,0.4349,3419.8,3419.7,0.29284]
[1735660122346,0.4489,3420.2,3420.1,0.29281]
[1735660122747,0.7417,3420.2,3420.1,0.29281]
[1735660123255,0.4489,3420.2,3420.1,0.29281]
[1735660123647,0.7302,3420.3,3420.2,0.2928]
[1735660123648,0.4374,3420.3,3420.2,0.2928]
[1735660124250,0.4309,3420.6,3420.2,0.2928]
[1735660124552,0.4309,3420.6,3420.5,3.50057]
[1735660124553,0.421,3420.6,3420.5,3.50057]
[1735660132256,0.421,3420.6,3420.5,5.83796935]
[1735660132655,0.421,3420.6,3420.5,2.80287]
[1735660132955,0.29279,3420.5,3420.4,0.29277]
[1735660133356,0.421,3420.6,3420.2,2.33739935]
[1735660133657,0.421,3420.6,3420.5,2.63016935]
[1735660134356,0.75244,3421.0,3420.5,2.33739935]
[1735660134558,0.75244,3421.0,3420.9,0.29274]
[1735660135050,0.4597,3421.0,3420.5,2.33739935]
[1735660135249,0.4597,3421.0,3420.7,0.29274]
[1735660135250,0.29276,3420.8,3420.7,0.29274]
[1735660137758,0.29277,3420.7,3420.6,0.29276]
[1735660137955,0.29277,3420.6,3420.5,0.29277]
[1735660138162,0.29276,3420.8,3420.7,0.29275]
[1735660138360,0.4197,3420.9,3420.8,0.29275]
[1735660138855,0.71244,3420.9,3420.8,0.29275]
[1735660139763,0.4197,3420.9,3420.4,1.251]
[1735660140063,0.29277,3420.6,3420.5,0.29277]
[1735660140868,0.71244,3420.9,3420.8,0.29275]
[1735660141059,0.4197,3420.9,3420.8,0.29275]
[1735660141366,0.4197,3420.9,3420.8,2.63014935]
[1735660141560,0.4597,3421.0,3420.8,5.54519935]
[1735660141760,0.8956,3421.4,3421.3,0.29271]
[1735660141965,1.1883,3421.4,3421.3,5.83790935]
[1735660142169,0.8956,3421.4,3421.3,5.83790935]
[1735660142565,0.8956,3421.4,3421.3,3.50051]
[1735660142869,0.29269,3421.6,3421.3,3.2078]
[1735660143069,1.3212,3421.8,3421.3,3.2078]
[1735660143267,0.29269,3421.6,3421.5,0.29268]
[1735660145364,1.3212,3421.8,3421.2,1.251]
[1735660145769,0.29269,3421.6,3421.4,0.29269]
[1735660146073,0.29269,3421.6,3421.5,0.29269]
[1735660146269,0.29268,3421.7,3421.6,0.29267]
[1735660146470,1.3212,3421.8,3421.3,2.33739935]
[1735660146771,0.29267,3421.7,3421.6,0.29267]
[1735660146968,1.61387,3421.8,3421.7,0.29267]
[1735660147971,0.29268,3421.7,3421.6,0.29267]
[1735660148176,0.29268,3421.6,3421.5,0.29268]
[1735660148376,0.2927,3421.4,3421.3,0.2927]
[1735660148577,0.2927,3421.4,3420.9,3.2078]
[1735660148772,0.29269,3421.5,3421.4,0.29269]
[1735660149976,0.2927,3421.5,3421.4,0.29269]
[1735660152377,0.29274,3421.0,3420.9,0.29274]
[1735660152583,3.93951,3421.6,3421.1,0.29272]
[1735660152780,3.93951,3421.6,3420.5,4.4588]
[1735660152980,0.29273,3421.0,3420.9,0.29273]
[1735660153181,0.29276,3420.7,3420.6,0.29276]
[1735660153486,0.8541,3420.9,3420.5,1.251]
[1735660153980,0.8541,3420.9,3420.8,0.29275]
[1735660154186,3.2078,3421.6,3420.8,3.2078]
[1735660154383,0.73164,3421.9,3421.3,0.2927]
[1735660154384,0.7271,3421.4,3421.3,0.2927]
[1735660154580,2.77179935,3421.4,3420.4,3.2078]
[1735660154780,2.33739935,3421.1,3420.4,3.2078]
[1735660154975,2.33739935,3420.6,3420.0,3.2078]
[1735660155178,0.2928,3420.3,3420.0,3.2078]
[1735660155382,0.8723,3420.5,3420.4,0.29278]
[1735660155581,0.4379,3420.9,3420.6,0.29276]
[1735660155883,0.73064,3420.9,3420.6,0.29277]
[1735660156087,0.4379,3420.9,3420.6,0.29277]
[1735660156387,0.4379,3420.9,3420.4,3.2078]
[1735660156883,5.00201879,3421.1,3420.4,3.2078]
[1735660157084,0.29274,3420.9,3420.5,0.29277]
[1735660157288,0.29274,3420.9,3420.4,3.2078]
[1735660157492,5.00201879,3421.1,3420.6,0.29276]
[1735660157683,0.29273,3421.0,3420.7,0.29275]
[1735660157881,5.29474879,3421.1,3420.7,0.29275]
[1735660158185,0.4344,3421.1,3420.9,0.29274]
[1735660158580,0.4344,3421.1,3420.8,4.4578]
[1735660158781,0.4344,3421.1,3420.9,0.29273]
[1735660158977,5.00191879,3421.4,3421.2,0.29271]
[1735660159291,5.00191879,3421.4,3420.9,0.4429]
[1735660159481,7.33931814,3421.4,3420.8,4.4578]
[1735660159788,0.29274,3420.9,3420.8,1.25]
[1735660159979,3.50053,3421.1,3420.8,1.25]
[1735660160177,3.2078,3421.1,3420.8,1.25]
[1735660160682,3.2078,3421.1,3421.0,0.29273]
[1735660161487,0.29271,3421.3,3421.0,0.29273]
[1735660161686,5.00191879,3421.4,3420.9,0.4295]
[1735660161991,5.00191879,3421.4,3420.8,1.25]
[1735660162182,7.77541879,3421.3,3420.6,3.2078]
[1735660162383,0.29276,3420.7,3420.6,3.2078]
[1735660162583,8.50719879,3421.3,3420.5,1.25]
[1735660162891,0.29275,3420.9,3420.5,1.25]
[1735660163083,4.56761879,3421.1,3420.5,1.25]
[1735660163292,0.29277,3420.5,3420.4,1.25]
[1735660163589,4.56761879,3421.1,3420.4,1.54278]
[1735660163590,3.2078,3420.9,3420.4,1.54278]
[1735660163782,0.29277,3420.6,3420.4,1.54278]
[1735660163987,0.29277,3420.6,3420.5,0.29277]
[1735660164397,4.56761879,3420.8,3420.7,0.29276]
[1735660164686,4.56761879,3420.8,3420.4,1.25]
[1735660164992,0.4569,3420.7,3420.6,0.29277]
[1735660165685,0.4569,3420.9,3420.4,1.25]
[1735660166390,0.29275,3420.8,3420.4,1.25]
[1735660166585,0.4569,3420.9,3420.5,0.29277]
[1735660166586,0.74965,3420.9,3420.5,0.29277]
[1735660166783,0.4569,3420.9,3420.2,4.4578]
[1735660167088,0.29276,3420.7,3420.5,0.29277]
[1735660167491,0.4569,3420.9,3420.5,0.29277]
[1735660167691,3.2078,3420.7,3420.2,1.25]
[1735660167992,7.77541879,3420.7,3420.2,1.25]
[1735660168193,4.56761879,3420.7,3420.2,1.25]
[1735660168484,4.56761879,3420.7,3420.2,1.54279]
[1735660168485,0.29279,3420.3,3420.2,1.54279]
[1735660168685,4.56761879,3420.7,3420.2,1.25]
[1735660168991,4.56761879,3420.7,3420.2,4.4578]
[1735660169193,4.56761879,3420.4,3420.3,0.29279]
[1735660169386,4.56761879,3420.4,3420.2,1.54279]
[1735660169586,4.56761879,3420.4,3420.2,1.25]
[1735660169787,4.56761879,3420.4,3420.3,0.29279]
[1735660170188,4.56761879,3420.4,3420.2,1.25]
[1735660170590,4.56761879,3420.4,3420.2,1.5428]
[1735660170788,4.86040879,3420.4,3420.2,1.5428]
[1735660170984,0.29281,3420.2,3420.0,0.29281]
[1735660171488,4.56761879,3420.4,3420.3,0.29279]
[1735660171792,4.56761879,3420.4,3420.0,2.62919935]
[1735660171992,0.2928,3420.3,3420.2,0.2928]
[1735660172294,0.2928,3420.2,3420.1,0.2928]
[1735660172495,0.72,3420.2,3420.1,0.2928]
[1735660172696,0.4272,3420.2,3420.1,0.2928]
[1735660173796,3.439888,3420.2,3420.1,0.2928]
[1735660174793,3.439888,3420.3,3419.9,1.25]
[1735660174996,3.732678,3420.3,3420.2,3.5006]
[1735660175390,0.29282,3420.1,3420.0,0.2928]
[1735660176594,0.4468,3420.2,3419.9,1.25]
[1735660176899,0.29282,3420.0,3419.9,1.54282]
[1735660177493,3.439888,3420.1,3420.0,0.29282]
[1735660177896,3.732698,3420.1,3420.0,0.29282]
[1735660179294,0.29281,3420.1,3420.0,0.29282]
[1735660180398,0.29282,3420.0,3419.9,1.25]
[1735660180593,0.29283,3419.9,3419.8,3.50063]
[1735660180794,0.75713,3419.9,3419.8,3.50063]
[1735660181001,0.75713,3419.9,3419.8,3.2078]
[1735660181498,0.29286,3419.6,3419.5,0.29285]
[1735660181700,0.29286,3419.6,3419.5,1.54285]
[1735660181896,4.636278,3419.9,3419.4,3.2078]
[1735660182097,4.636278,3419.9,3419.2,1.25]
[1735660182098,0.29288,3419.3,3419.2,1.25]
[1735660182294,0.4304,3419.5,3419.1,4.57422494]
[1735660182498,0.29289,3419.2,3419.1,4.57422494]
[1735660183100,4.37037,3419.5,3418.5,11.48951513]
[1735660183101,0.29293,3418.7,3418.6,0.29293]
[1735660183404,0.29294,3418.6,3418.5,4.57422494]
[1735660183600,3.93114,3418.6,3418.5,3.17862494]
[1735660183903,3.93114,3418.6,3418.5,1.61862494]
[1735660185002,8.20581879,3418.6,3417.8,3.2078]
[1735660185199,0.293,3417.9,3417.8,3.2078]
[1735660185503,0.29302,3417.7,3417.5,0.29303]
[1735660185704,0.74261,3417.8,3417.6,0.29302]
[1735660186099,0.29302,3417.7,3417.3,1.9923]
[1735660186295,0.29302,3417.7,3417.6,0.29302]
[1735660186497,0.4496,3417.8,3417.3,1.9923]
[1735660186698,0.29302,3417.6,3417.5,0.29302]
[1735660186898,0.4496,3417.8,3417.3,1.5419]
[1735660187096,0.29302,3417.6,3417.5,0.29302]
[1735660187410,0.4496,3417.8,3417.2,0.29305]
[1735660187707,0.29307,3417.0,3416.9,0.29308]
[1735660187896,0.4556,3417.5,3416.8,4.75089]
[1735660188100,0.29308,3416.9,3416.8,4.4578]
[1735660188296,0.29308,3416.9,3416.2,0.73286]
[1735660188297,2.33739935,3417.2,3416.3,3.2078]
[1735660188501,3.2078,3416.5,3415.9,6.89370908]
[1735660188708,0.29315,3416.1,3415.9,0.29317]
[1735660188904,0.29313,3416.3,3415.8,1.54317]
[1735660189200,0.29314,3416.3,3416.0,0.29316]
[1735660189405,0.4556,3416.4,3416.3,0.29313]
[1735660189907,0.4556,3416.4,3416.1,3.2078]
[1735660190105,0.29315,3416.2,3415.9,0.29316]
[1735660190406,0.4556,3416.4,3415.8,3.58739935]
[1735660190597,0.74873,3416.4,3416.1,0.29315]
[1735660190797,0.74873,3416.4,3415.8,3.58739935]
[1735660191006,0.74873,3416.4,3416.2,0.29314]
[1735660191212,0.4556,3416.4,3416.2,0.29314]
[1735660191506,0.29314,3416.3,3415.8,3.58739935]
[1735660191705,0.4556,3416.4,3416.0,0.29316]
[1735660191901,0.4556,3416.4,3415.9,0.29316]
[1735660192303,0.4556,3416.4,3415.6,3.2078]
[1735660192510,0.4556,3416.4,3415.9,0.29316]
[1735660192704,0.29315,3416.2,3415.9,0.29316]
[1735660193201,0.4556,3416.4,3415.6,3.2078]
[1735660193509,0.29314,3416.3,3416.0,3.50096]
[1735660193710,0.75833,3416.4,3416.1,0.29315]
[1735660194208,0.4652,3416.4,3416.2,0.29314]
[1735660194709,0.75833,3416.4,3416.1,0.29315]
[1735660195008,0.75833,3416.4,3416.2,0.29314]
[1735660195415,0.4652,3416.4,3416.2,0.29314]
[1735660195711,0.75833,3416.4,3416.2,0.29314]
[1735660196913,0.29311,3416.6,3415.8,2.33739935]
[1735660197104,0.8942,3416.8,3416.4,0.29312]
[1735660197305,0.29311,3416.6,3416.4,0.29312]
[1735660198009,0.8942,3416.8,3416.0,3.2078]
[1735660198010,0.29312,3416.5,3416.3,0.29313]
[1735660198502,0.8942,3416.8,3416.0,3.2078]
[1735660198711,0.29315,3416.2,3416.0,0.29316]
[1735660198911,0.8942,3416.8,3415.6,3.2078]
[1735660199112,0.29313,3416.4,3416.2,0.29314]
[1735660199713,0.8942,3416.8,3415.8,2.33739935]
[1735660200014,1.1873,3416.8,3416.2,0.29314]
[1735660200312,1.1873,3416.8,3416.6,0.2931]
[1735660200915,0.8942,3416.8,3416.2,0.4211]
[1735660201111,0.8942,3416.8,3416.0,3.2078]
[1735660201413,0.8942,3416.8,3416.2,0.29314]
[1735660201611,0.29313,3416.3,3416.1,0.29315]
[1735660201810,0.8942,3416.8,3415.8,2.75849935]
[1735660202011,0.29316,3416.0,3415.7,0.29318]
[1735660202208,3.2078,3416.4,3415.6,0.4579]
[1735660202514,0.29316,3416.0,3415.9,0.29317]
[1735660202807,0.29318,3415.8,3415.6,0.29319]
[1735660203013,0.29318,3415.8,3415.5,3.2078]
[1735660203405,0.428,3415.9,3415.2,4.00949935]
[1735660203609,0.428,3415.9,3415.4,0.29321]
[1735660203807,0.428,3415.9,3415.2,0.4211]
[1735660204007,0.428,3415.9,3415.2,0.29322]
[1735660204203,0.29318,3415.8,3415.1,3.50103]
[1735660204415,3.2078,3415.5,3414.9,0.29325]
[1735660204714,0.29325,3415.0,3414.8,9.29326]
[1735660204912,0.4444,3415.4,3414.8,9.0]
[1735660205104,0.29324,3415.1,3415.0,0.29324]
[1735660205307,0.4444,3415.4,3414.8,9.0]
[1735660205606,3.2078,3416.0,3415.2,5.54519935]
[1735660205807,0.29319,3415.6,3415.5,0.2932]
[1735660206114,0.72117,3415.9,3415.8,0.29318]
[1735660206317,0.428,3415.9,3415.8,0.29318]
[1735660206512,3.2078,3416.0,3415.9,0.29317]
[1735660207011,0.29313,3416.4,3416.3,0.29313]
[1735660207212,0.42,3416.5,3415.6,4.37049]
[1735660207213,0.42,3416.5,3416.4,0.29312]
[1735660207411,3.2078,3416.6,3416.5,0.29312]
[1735660209306,3.50091,3416.6,3416.5,0.29312]
[1735660209617,0.29312,3416.5,3416.4,0.29312]
[1735660209917,0.29312,3416.5,3416.0,3.9407]
[1735660209918,0.29313,3416.4,3416.3,0.29313]
[1735660210217,0.29315,3416.2,3416.1,0.29315]
[1735660210518,0.29315,3416.1,3416.0,3.50095]
[1735660210913,2.78909935,3416.3,3415.5,3.2078]
[1735660211115,0.29319,3415.6,3415.5,3.501]
[1735660211316,0.29324,3415.1,3414.9,3.2078]
[1735660211507,0.29014366,3415.4,3415.2,0.29322]
[1735660211713,0.29322,3415.3,3415.2,0.29322]
[1735660212017,0.29322,3415.3,3415.2,0.29323]
[1735660212208,0.8795,3415.5,3414.9,3.2078]
[1735660212414,0.29322,3415.3,3415.2,0.29323]
[1735660212720,0.4434,3415.5,3414.9,3.2078]
[1735660212915,0.29322,3415.4,3414.9,3.6676]
[1735660213113,0.7366,3415.5,3414.9,4.40072]
[1735660213314,0.29319,3415.7,3415.6,0.29319]
[1735660213516,3.2078,3415.8,3415.0,0.4433]
[1735660213818,0.2932,3415.6,3415.5,0.2932]
[1735660214220,0.29319,3415.7,3415.6,0.29319]
[1735660214714,3.2078,3415.8,3415.7,0.29318]
[1735660215019,3.95264,3416.3,3415.5,1.0262]
[1735660215216,3.95264,3416.3,3415.3,0.29321]
[1735660215217,3.2078,3415.9,3415.3,0.29321]
[1735660215414,3.2078,3415.9,3415.0,3.2078]
[1735660215615,0.29319,3415.7,3415.1,1.02634]
[1735660215927,0.8581,3416.2,3415.7,0.29318]
[1735660215928,0.29318,3415.8,3415.7,0.29318]
[1735660216122,0.29317,3415.9,3415.7,0.29318]
[1735660216516,3.2078,3416.1,3415.4,3.2078]
[1735660216722,0.29318,3415.9,3415.7,0.29318]
[1735660216920,3.2078,3416.1,3415.4,3.2078]
[1735660217415,0.29316,3416.0,3415.7,0.29318]
[1735660217620,3.2078,3416.1,3415.4,3.2078]
[1735660217818,3.2078,3416.1,3416.0,0.29316]
[1735660218120,0.29315,3416.2,3416.1,0.29315]
[1735660218318,0.4517,3416.3,3415.9,0.29317]
[1735660218525,0.29315,3416.1,3416.0,0.29316]
[1735660218714,0.29315,3416.2,3416.1,0.29315]
[1735660218915,0.4517,3416.3,3416.1,0.29315]
[1735660219225,0.74484,3416.3,3416.1,0.29315]
[1735660219522,3.50091,3416.6,3415.9,1.0261]
[1735660219719,3.2078,3416.6,3416.0,0.8992]
[1735660219919,0.29312,3416.5,3416.1,0.29315]
[1735660220115,0.29312,3416.5,3416.0,0.8992]
[1735660220116,0.29313,3416.4,3416.2,0.29314]
[1735660220323,0.29312,3416.4,3416.2,0.29314]
[1735660220620,0.4548,3416.5,3416.2,0.29314]
[1735660220820,0.29313,3416.4,3416.2,0.29314]
[1735660221016,0.4548,3416.5,3416.0,0.8992]
[1735660221217,0.29315,3416.1,3416.0,1.19235]
[1735660221423,0.29315,3416.1,3416.0,0.74725]
[1735660221625,0.29316,3416.0,3415.9,0.29316]
[1735660221824,0.4548,3416.5,3415.7,1.251]
[1735660222019,0.29314,3416.3,3416.2,0.29314]
[1735660222324,0.4548,3416.5,3415.8,3.2078]
[1735660222519,0.29312,3416.4,3416.1,0.29314]
[1735660222720,0.29312,3416.4,3416.2,0.29313]
[1735660222926,0.29313,3416.3,3416.2,0.29314]
[1735660223427,0.4548,3416.5,3415.8,3.2078]
[1735660223627,0.29314,3416.2,3416.1,0.29314]
[1735660223921,0.4548,3416.5,3415.8,3.2078]
[1735660224123,0.29316,3416.1,3416.0,0.29316]
[1735660225123,0.4548,3416.5,3415.8,3.2078]
[1735660225426,0.29315,3416.2,3416.1,0.29314]
[1735660227716,0.29316,3416.1,3416.0,0.29315]
[1735660227923,0.29317,3415.9,3415.8,3.2078]
[1735660228325,0.29317,3415.9,3415.8,3.50098]
[1735660228622,0.29317,3415.9,3415.8,3.2078]
[1735660229524,0.29317,3415.9,3415.8,3.50098]
[1735660230122,0.29317,3415.9,3415.8,3.2078]
[1735660230831,0.29317,3415.9,3415.8,3.50098]
[1735660232427,2.55065803,3415.9,3415.8,3.50098]
[1735660232627,2.55065803,3415.9,3415.8,3.2078]
[1735660233432,0.29317,3415.9,3415.8,3.2078]
[1735660235229,5.01671879,3416.0,3415.8,3.2078]
[1735660235525,0.29317,3415.9,3415.8,3.50097]
[1735660235730,0.29317,3415.9,3415.8,3.2078]
[1735660235927,4.56761879,3416.0,3415.7,0.29318]
[1735660236233,0.2932,3415.6,3415.5,0.29319]
[1735660236932,0.2932,3415.6,3415.5,0.2932]
[1735660237330,3.43431145,3415.7,3415.4,3.2078]
[1735660237535,0.2932,3415.6,3415.5,0.2932]
[1735660238826,0.73299,3415.6,3415.1,0.4601]
[1735660239035,0.29323,3415.2,3415.1,0.75333]
[1735660239226,0.29323,3415.2,3415.1,0.4601]
[1735660239423,0.29323,3415.2,3415.1,0.75334]
[1735660239634,0.29323,3415.2,3415.1,0.4601]
[1735660239832,3.72817797,3415.2,3415.1,0.4601]
[1735660240031,3.72817797,3415.2,3415.1,0.75334]
[1735660241034,3.43494797,3415.2,3415.0,3.2078]
[1735660241237,0.29323,3415.2,3415.1,0.29323]
[1735660241429,4.56761879,3415.3,3415.0,3.2078]
[1735660241630,4.56761879,3415.3,3415.2,0.29323]
[1735660242028,2.28928088,3415.1,3415.0,5.8457438]
[1735660242231,0.03078088,3415.1,3415.0,10.8457438]
[1735660242433,4.56761879,3415.4,3415.3,0.29322]
[1735660243231,3.43526886,3415.7,3415.0,3.2078]
[1735660243436,0.29322,3415.4,3415.3,0.29321]
[1735660243935,0.29324,3415.1,3415.0,3.50104]
[1735660244234,0.29324,3415.1,3415.0,3.2078]
[1735660244436,0.29324,3415.1,3415.0,3.50105]
[1735660245237,0.29324,3415.1,3415.0,3.2078]
[1735660245536,0.29325,3414.9,3414.8,9.0]
[1735660245725,2.6379438,3414.9,3414.8,9.0]
[1735660246124,2.6379438,3414.9,3414.8,7.44]
[1735660248337,3.09956178,3414.9,3414.8,7.44]
[1735660249236,8.09956178,3414.9,3414.8,7.44]
[1735660249539,0.29336,3413.8,3413.5,3.50117]
[1735660249734,0.8924,3413.7,3413.5,3.2078]
[1735660249928,1.18576,3413.7,3413.5,0.29337]
[1735660250530,1.18576,3413.7,3413.4,0.29338]
[1735660250734,1.18576,3413.7,3413.1,3.2078]
[1735660251229,0.8924,3413.7,3413.6,0.29337]
[1735660251534,0.4632,3413.7,3413.6,0.29337]
[1735660251730,0.4365,3414.1,3413.3,0.73349]
[1735660251934,0.4365,3414.1,3414.0,0.29333]
[1735660252131,5.29440409,3414.1,3413.9,0.29334]
[1735660252335,5.00108409,3414.1,3414.0,0.29333]
[1735660252535,4.56458409,3414.1,3414.0,0.29333]
[1735660252738,3.42133036,3414.2,3414.1,0.29332]
[1735660253934,3.42133036,3414.2,3413.7,1.25]
[1735660253935,0.75601,3414.3,3413.7,1.25]
[1735660254236,0.75601,3414.3,3414.0,0.29332]
[1735660255137,0.4627,3414.3,3414.1,0.29332]
[1735660255337,0.4627,3414.3,3413.7,1.25]
[1735660255338,0.75601,3414.3,3414.0,0.29332]
[1735660255536,0.4627,3414.3,3414.1,0.29332]
[1735660255941,0.4627,3414.3,3413.7,1.25]
[1735660257143,3.42133036,3414.5,3413.7,1.25]
[1735660257337,3.71462036,3414.5,3413.7,1.25]
[1735660257539,2.80631178,3414.4,3413.7,1.25]
[1735660258039,3.09961178,3414.4,3414.1,0.29332]
[1735660258235,6.01411178,3414.4,3413.6,0.4285]
[1735660258440,6.01411178,3414.4,3413.7,1.25]
[1735660258639,6.01411178,3414.4,3413.8,0.29334]
[1735660258939,6.01411178,3414.4,3413.7,1.25]
[1735660259140,0.29334,3413.9,3413.7,1.54335]
[1735660259347,0.4475,3413.8,3413.7,1.54335]
[1735660260239,0.74085,3413.8,3413.7,1.54335]
[1735660260547,0.29337,3413.6,3413.5,3.2078]
[1735660260841,0.71916,3413.7,3413.6,0.29337]
[1735660261747,0.4258,3413.7,3413.6,0.29337]
[1735660262440,0.29331,3414.3,3414.1,0.29332]
[1735660262738,7.77238409,3414.4,3414.1,0.29332]
[1735660262946,4.56458409,3414.4,3414.1,0.29332]
[1735660263345,4.14042036,3414.5,3414.4,0.2933]
[1735660263849,3.84713036,3414.5,3414.4,0.2933]
[1735660264341,3.84713036,3414.5,3413.8,2.80631178]
[1735660264542,0.2933,3414.4,3414.3,0.2933]
[1735660264840,0.4258,3414.5,3413.7,5.19118]
[1735660265046,0.4258,3414.5,3414.3,0.2933]
[1735660265047,0.2933,3414.4,3414.3,0.2933]
[1735660265439,0.4258,3414.5,3413.8,0.73338]
[1735660265641,0.71909,3414.5,3414.4,0.2933]
[1735660266041,0.4387,3414.7,3414.1,3.9411]
[1735660266241,0.4387,3414.7,3414.6,0.29328]
[1735660266939,0.4387,3414.7,3414.3,0.73326]
[1735660266940,0.29328,3414.6,3414.3,0.29331]
[1735660267135,0.4387,3414.7,3414.2,1.17009]
[1735660267644,0.4387,3414.7,3414.6,0.29328]
[1735660268038,0.4316,3415.0,3414.9,0.29325]
[1735660268239,0.71994,3415.1,3414.6,0.29328]
[1735660268450,0.29325,3415.0,3414.6,0.29327]
[1735660268645,0.29328,3414.6,3414.5,0.29329]
[1735660268838,0.29328,3414.7,3414.4,1.25]
[1735660269035,0.29328,3414.7,3414.6,0.29328]
[1735660269246,1.02637,3415.0,3414.4,1.54329]